[Event "Titled Tuesday Blitz November 15 Late 2022"]
[White "Melian, Juan Sebastian"]
[Black "Petrovic, Aleksa"]
[WhiteFideId "3706575"]
[BlackFideId "967629"]
[WhiteElo "2044"]
[BlackElo "2224"]
[Result "1-0"]
[Round "11"]
[TimeControl "180+1"]
[Date "2022.11.16"]
[WhiteClock "0:00:01"]
[BlackClock "0:00:02"]

1. d4 {[%clk 0:02:54]}  e6 {[%clk 0:03:00]} 2. c4 {[%clk 0:02:54]}  Nf6 {[%clk 0:02:59]} 3. Nc3 {[%clk 0:02:55]}  Bb4 {[%clk 0:02:59]} 4. Qc2 {[%clk 0:02:56]}  O-O {[%clk 0:02:57]} 5. Nf3 {[%clk 0:02:55]}  c5 {[%clk 0:02:56]} 6. dxc5 {[%clk 0:02:46]}  Bxc5 {[%clk 0:02:52]} 7. Bg5 {[%clk 0:02:29]}  Be7 {[%clk 0:02:47]} 8. e3 {[%clk 0:02:26]}  d6 {[%clk 0:02:46]} 9. Rd1 {[%clk 0:02:25]}  Nbd7 {[%clk 0:02:30]} 10. Be2 {[%clk 0:02:25]}  a6 {[%clk 0:02:30]} 11. O-O {[%clk 0:02:24]}  b6 {[%clk 0:02:30]} 12. Nd4 {[%clk 0:02:23]}  Bb7 {[%clk 0:02:28]} 13. e4 {[%clk 0:02:22]}  Rc8 {[%clk 0:02:25]} 14. b3 {[%clk 0:02:18]}  Qc7 {[%clk 0:02:25]} 15. Qb1 {[%clk 0:02:16]}  b5 {[%clk 0:02:02]} 16. Rc1 {[%clk 0:02:10]}  b4 {[%clk 0:01:55]} 17. Na4 {[%clk 0:01:41]}  Bxe4 {[%clk 0:01:48]} 18. Bd3 {[%clk 0:01:32]}  Bxd3 {[%clk 0:01:45]} 19. Qxd3 {[%clk 0:01:33]}  Ne5 {[%clk 0:01:41]} 20. Qe2 {[%clk 0:01:32]}  h6 {[%clk 0:01:35]} 21. Bh4 {[%clk 0:01:30]}  Nc6 {[%clk 0:01:26]} 22. Nc2 {[%clk 0:01:30]}  Qa5 {[%clk 0:01:17]} 23. Rfe1 {[%clk 0:01:27]}  Qh5 {[%clk 0:01:10]} 24. Qxh5 {[%clk 0:01:26]}  Nxh5 {[%clk 0:01:07]} 25. Bxe7 {[%clk 0:01:27]}  Nxe7 {[%clk 0:01:07]} 26. Nxb4 {[%clk 0:01:28]}  a5 {[%clk 0:01:01]} 27. Nd3 {[%clk 0:01:27]}  d5 {[%clk 0:00:55]} 28. c5 {[%clk 0:01:27]}  Nf6 {[%clk 0:00:49]} 29. f3 {[%clk 0:01:25]}  Nd7 {[%clk 0:00:45]} 30. a3 {[%clk 0:01:21]}  Nc6 {[%clk 0:00:37]} 31. Rb1 {[%clk 0:01:10]}  Rb8 {[%clk 0:00:34]} 32. b4 {[%clk 0:01:09]}  axb4 {[%clk 0:00:30]} 33. axb4 {[%clk 0:01:05]}  Nd4 {[%clk 0:00:30]} 34. Nc3 {[%clk 0:00:59]}  Ra8 {[%clk 0:00:23]} 35. Rec1 {[%clk 0:00:50]}  Ra3 {[%clk 0:00:20]} 36. Kf2 {[%clk 0:00:49]}  Rfa8 {[%clk 0:00:19]} 37. b5 {[%clk 0:00:49]}  Rc8 {[%clk 0:00:14]} 38. b6 {[%clk 0:00:39]}  Nc6 {[%clk 0:00:07]} 39. Ra1 {[%clk 0:00:24]}  Rb3 {[%clk 0:00:05]} 40. Rab1 {[%clk 0:00:19]}  Ra3 {[%clk 0:00:05]} 41. Rc2 {[%clk 0:00:13]}  d4 {[%clk 0:00:05]} 42. b7 {[%clk 0:00:10]}  Rb8 {[%clk 0:00:05]} 43. Ne4 {[%clk 0:00:06]}  Rxd3 {[%clk 0:00:04]} 44. Nd6 {[%clk 0:00:04]}  Rc3 {[%clk 0:00:03]} 45. Rd2 {[%clk 0:00:02]}  Nxc5 {[%clk 0:00:02]} 46. h4 {[%clk 0:00:01]}  e5 {[%clk 0:00:01]} 47. Kg3 {[%clk 0:00:01]}  e4 {[%clk 0:00:02]} 48. Kh2 {[%clk 0:00:01]}  e3 {[%clk 0:00:02]} 49. Re2 {[%clk 0:00:01]} 1-0


[Site "https://www.chess.com"]

[Event "Titled Tuesday Blitz November 15 Late 2022"]
[White "Mirzoev, Azer"]
[Black "Milchev, Nikolay"]
[WhiteFideId "13400304"]
[BlackFideId "2906090"]
[WhiteElo "2525"]
[BlackElo "2449"]
[Result "0-1"]
[Round "11"]
[TimeControl "180+1"]
[Date "2022.11.16"]
[WhiteClock "0:00:43"]
[BlackClock "0:00:50"]

1. e4 {[%clk 0:03:00]}  Nf6 {[%clk 0:03:00]} 2. Nc3 {[%clk 0:02:58]}  e5 {[%clk 0:03:01]} 3. Bc4 {[%clk 0:02:56]}  Nxe4 {[%clk 0:03:01]} 4. Qh5 {[%clk 0:02:54]}  Nd6 {[%clk 0:03:01]} 5. Bb3 {[%clk 0:02:53]}  Nc6 {[%clk 0:02:53]} 6. Nf3 {[%clk 0:02:53]}  g6 {[%clk 0:02:49]} 7. Qh3 {[%clk 0:02:37]}  Bg7 {[%clk 0:02:49]} 8. d3 {[%clk 0:02:36]}  h6 {[%clk 0:02:46]} 9. Bd2 {[%clk 0:02:35]}  Nf5 {[%clk 0:02:33]} 10. O-O-O {[%clk 0:02:35]}  d6 {[%clk 0:02:33]} 11. g4 {[%clk 0:02:33]}  Nfd4 {[%clk 0:02:31]} 12. Nxd4 {[%clk 0:02:32]}  Nxd4 {[%clk 0:02:32]} 13. Qg2 {[%clk 0:02:22]}  c6 {[%clk 0:02:28]} 14. f4 {[%clk 0:02:21]}  a5 {[%clk 0:02:15]} 15. fxe5 {[%clk 0:02:18]}  dxe5 {[%clk 0:02:16]} 16. g5 {[%clk 0:02:14]}  h5 {[%clk 0:02:09]} 17. Kb1 {[%clk 0:02:07]}  O-O {[%clk 0:02:04]} 18. Rdf1 {[%clk 0:02:04]}  b5 {[%clk 0:01:56]} 19. Rxf7 {[%clk 0:01:33]}  Rxf7 {[%clk 0:01:52]} 20. Bxf7+ {[%clk 0:01:34]}  Kxf7 {[%clk 0:01:52]} 21. Ne4 {[%clk 0:01:33]}  Bf5 {[%clk 0:01:47]} 22. Rf1 {[%clk 0:01:32]}  Kg8 {[%clk 0:01:47]} 23. Bc3 {[%clk 0:01:28]}  Qe7 {[%clk 0:01:24]} 24. b3 {[%clk 0:01:21]}  b4 {[%clk 0:01:21]} 25. Bb2 {[%clk 0:01:21]}  Rf8 {[%clk 0:01:21]} 26. Re1 {[%clk 0:01:18]}  Bg4 {[%clk 0:01:13]} 27. Qg3 {[%clk 0:01:14]}  Rf3 {[%clk 0:01:06]} 28. Qg1 {[%clk 0:01:13]}  Qf8 {[%clk 0:01:01]} 29. h3 {[%clk 0:00:57]}  Bxh3 {[%clk 0:00:58]} 30. Nd2 {[%clk 0:00:56]}  Rf2 {[%clk 0:00:55]} 31. Bxd4 {[%clk 0:00:49]}  exd4 {[%clk 0:00:51]} 32. Nc4 {[%clk 0:00:43]}  Rf1 {[%clk 0:00:50]} 0-1


[Site "https://www.chess.com"]

[Event "Titled Tuesday Blitz November 15 Late 2022"]
[White "Molenda, Marcin"]
[Black "Fernandez De La Vara, Arnaldo"]
[WhiteFideId "1173065"]
[BlackFideId "3518388"]
[WhiteElo "2281"]
[BlackElo "2387"]
[Result "1-0"]
[Round "11"]
[TimeControl "180+1"]
[Date "2022.11.15"]
[WhiteClock "0:01:40"]
[BlackClock "0:00:37"]

1. e4 {[%clk 0:02:56]}  c5 {[%clk 0:02:47]} 2. Nf3 {[%clk 0:02:54]}  e6 {[%clk 0:02:48]} 3. d4 {[%clk 0:02:54]}  cxd4 {[%clk 0:02:49]} 4. Nxd4 {[%clk 0:02:55]}  a6 {[%clk 0:02:49]} 5. g3 {[%clk 0:02:55]}  Nf6 {[%clk 0:02:49]} 6. Bg2 {[%clk 0:02:55]}  Nc6 {[%clk 0:02:49]} 7. O-O {[%clk 0:02:55]}  Qc7 {[%clk 0:02:49]} 8. c4 {[%clk 0:02:47]}  Bc5 {[%clk 0:02:29]} 9. Nxc6 {[%clk 0:02:43]}  dxc6 {[%clk 0:02:30]} 10. Qc2 {[%clk 0:02:38]}  O-O {[%clk 0:02:27]} 11. b3 {[%clk 0:02:38]}  e5 {[%clk 0:02:24]} 12. Nc3 {[%clk 0:02:35]}  b5 {[%clk 0:02:19]} 13. cxb5 {[%clk 0:02:26]}  axb5 {[%clk 0:02:17]} 14. Bg5 {[%clk 0:02:27]}  Bd4 {[%clk 0:02:12]} 15. Bxf6 {[%clk 0:02:26]}  gxf6 {[%clk 0:02:13]} 16. Nxb5 {[%clk 0:02:24]}  Qb6 {[%clk 0:02:06]} 17. Nxd4 {[%clk 0:02:23]}  exd4 {[%clk 0:02:06]} 18. Qd2 {[%clk 0:02:12]}  Kg7 {[%clk 0:02:03]} 19. Rac1 {[%clk 0:02:02]}  Ba6 {[%clk 0:01:53]} 20. Rfd1 {[%clk 0:02:00]}  Rfd8 {[%clk 0:01:53]} 21. Qf4 {[%clk 0:01:58]}  Re8 {[%clk 0:01:28]} 22. e5 {[%clk 0:01:56]}  fxe5 {[%clk 0:01:29]} 23. Qg5+ {[%clk 0:01:56]}  Kh8 {[%clk 0:01:25]} 24. Qf6+ {[%clk 0:01:50]}  Kg8 {[%clk 0:01:26]} 25. Rxc6 {[%clk 0:01:50]}  Qa5 {[%clk 0:01:18]} 26. Be4 {[%clk 0:01:42]}  Bb7 {[%clk 0:00:54]} 27. Qg5+ {[%clk 0:01:41]}  Kf8 {[%clk 0:00:37]} 28. Qh6+ {[%clk 0:01:40]}  Ke7 {[%clk 0:00:37]} 29. Qd6# {[%clk 0:01:40]} 1-0


[Site "https://www.chess.com"]

[Event "Titled Tuesday Blitz November 15 Late 2022"]
[White "Palencia Morales, Wilson Guillermo"]
[Black "Prydun, Andriy"]
[WhiteFideId "4401859"]
[BlackFideId "14145898"]
[WhiteElo "2160"]
[BlackElo "2163"]
[Result "0-1"]
[Round "11"]
[TimeControl "180+1"]
[Date "2022.11.16"]
[WhiteClock "0:00:41"]
[BlackClock "0:00:33"]

1. d4 {[%clk 0:03:00]}  Nf6 {[%clk 0:02:58]} 2. c4 {[%clk 0:03:00]}  e6 {[%clk 0:02:59]} 3. Nf3 {[%clk 0:02:59]}  b6 {[%clk 0:02:59]} 4. g3 {[%clk 0:02:58]}  Bb7 {[%clk 0:02:59]} 5. Bg2 {[%clk 0:02:56]}  Be7 {[%clk 0:02:58]} 6. O-O {[%clk 0:02:51]}  O-O {[%clk 0:02:59]} 7. Nc3 {[%clk 0:02:47]}  Ne4 {[%clk 0:02:58]} 8. Qc2 {[%clk 0:02:44]}  Nxc3 {[%clk 0:02:57]} 9. Qxc3 {[%clk 0:02:45]}  d6 {[%clk 0:02:56]} 10. d5 {[%clk 0:02:37]}  exd5 {[%clk 0:02:48]} 11. Nd4 {[%clk 0:02:36]}  c5 {[%clk 0:02:45]} 12. Nf5 {[%clk 0:02:34]}  d4 {[%clk 0:02:45]} 13. Nxe7+ {[%clk 0:02:30]}  Qxe7 {[%clk 0:02:45]} 14. Qd2 {[%clk 0:02:27]}  Bxg2 {[%clk 0:02:43]} 15. Kxg2 {[%clk 0:02:26]}  Nc6 {[%clk 0:02:44]} 16. Re1 {[%clk 0:02:26]}  Rfe8 {[%clk 0:02:40]} 17. b3 {[%clk 0:02:24]}  Rad8 {[%clk 0:02:35]} 18. a3 {[%clk 0:02:21]}  d5 {[%clk 0:02:35]} 19. cxd5 {[%clk 0:02:11]}  Rxd5 {[%clk 0:02:36]} 20. b4 {[%clk 0:02:11]}  c4 {[%clk 0:02:26]} 21. e4 {[%clk 0:02:09]}  Re5 {[%clk 0:02:20]} 22. f3 {[%clk 0:02:07]}  f5 {[%clk 0:02:18]} 23. Qc2 {[%clk 0:02:04]}  b5 {[%clk 0:02:08]} 24. Bf4 {[%clk 0:02:03]}  Re6 {[%clk 0:02:05]} 25. a4 {[%clk 0:02:03]}  a6 {[%clk 0:02:04]} 26. axb5 {[%clk 0:02:02]}  axb5 {[%clk 0:02:05]} 27. e5 {[%clk 0:01:39]}  g5 {[%clk 0:02:02]} 28. Bd2 {[%clk 0:01:30]}  Rxe5 {[%clk 0:02:01]} 29. Rxe5 {[%clk 0:01:29]}  Qxe5 {[%clk 0:02:02]} 30. Re1 {[%clk 0:01:28]}  h6 {[%clk 0:00:55]} 31. Rxe5 {[%clk 0:01:19]}  Rxe5 {[%clk 0:00:56]} 32. f4 {[%clk 0:01:12]}  Re2+ {[%clk 0:00:51]} 33. Kf1 {[%clk 0:01:08]}  d3 {[%clk 0:00:50]} 34. Qc3 {[%clk 0:01:06]}  Kf7 {[%clk 0:00:43]} 35. Qh8 {[%clk 0:01:01]}  Rxd2 {[%clk 0:00:42]} 36. Qh7+ {[%clk 0:00:58]}  Ke8 {[%clk 0:00:43]} 37. Qg6+ {[%clk 0:00:54]}  Kd7 {[%clk 0:00:42]} 38. Qxf5+ {[%clk 0:00:53]}  Kc7 {[%clk 0:00:42]} 39. fxg5 {[%clk 0:00:51]}  c3 {[%clk 0:00:41]} 40. Ke1 {[%clk 0:00:50]}  Re2+ {[%clk 0:00:39]} 41. Kf1 {[%clk 0:00:49]}  c2 {[%clk 0:00:37]} 42. Qf4+ {[%clk 0:00:49]}  Kb6 {[%clk 0:00:33]} 43. g6 {[%clk 0:00:47]}  d2 {[%clk 0:00:32]} 44. Kxe2 {[%clk 0:00:42]}  d1=Q+ {[%clk 0:00:32]} 45. Kf2 {[%clk 0:00:41]}  c1=Q {[%clk 0:00:33]} 0-1


[Site "https://www.chess.com"]

[Event "Titled Tuesday Blitz November 15 Late 2022"]
[White "Poliakova, Varvara"]
[Black "Averjanov, Alexey"]
[WhiteFideId "13518313"]
[BlackFideId "14109867"]
[WhiteElo "2099"]
[BlackElo "2615"]
[Result "1-0"]
[Round "11"]
[TimeControl "180+1"]
[Date "2022.11.16"]
[WhiteClock "0:00:29"]
[BlackClock "0:00:01"]

1. e4 {[%clk 0:03:00]}  c6 {[%clk 0:02:59]} 2. d4 {[%clk 0:03:00]}  d5 {[%clk 0:03:00]} 3. Nd2 {[%clk 0:02:58]}  dxe4 {[%clk 0:02:59]} 4. Nxe4 {[%clk 0:02:59]}  Bf5 {[%clk 0:02:59]} 5. Ng3 {[%clk 0:02:59]}  Bg6 {[%clk 0:02:58]} 6. h4 {[%clk 0:03:00]}  h6 {[%clk 0:02:58]} 7. Nh3 {[%clk 0:02:59]}  e6 {[%clk 0:02:57]} 8. Nf4 {[%clk 0:02:58]}  Bh7 {[%clk 0:02:57]} 9. Bd3 {[%clk 0:02:56]}  Bxd3 {[%clk 0:02:56]} 10. Qxd3 {[%clk 0:02:57]}  Nf6 {[%clk 0:02:56]} 11. O-O {[%clk 0:02:55]}  Bd6 {[%clk 0:02:53]} 12. c3 {[%clk 0:02:47]}  Nd5 {[%clk 0:02:45]} 13. Nfh5 {[%clk 0:02:45]}  Qxh4 {[%clk 0:02:34]} 14. Nxg7+ {[%clk 0:02:41]}  Kf8 {[%clk 0:02:30]} 15. N7h5 {[%clk 0:02:41]}  Nd7 {[%clk 0:02:28]} 16. c4 {[%clk 0:02:26]}  N5f6 {[%clk 0:02:27]} 17. Nxf6 {[%clk 0:02:12]}  Nxf6 {[%clk 0:02:26]} 18. f4 {[%clk 0:01:59]}  Rg8 {[%clk 0:02:24]} 19. Ne4 {[%clk 0:01:55]}  Nxe4 {[%clk 0:02:11]} 20. Qxe4 {[%clk 0:01:54]}  Ke7 {[%clk 0:02:10]} 21. Be3 {[%clk 0:01:41]}  Rg4 {[%clk 0:02:06]} 22. d5 {[%clk 0:01:38]}  Rag8 {[%clk 0:02:01]} 23. Rf2 {[%clk 0:01:36]}  R8g5 {[%clk 0:01:20]} 24. dxe6 {[%clk 0:01:25]}  Rh5 {[%clk 0:01:20]} 25. exf7+ {[%clk 0:01:22]}  Kxf7 {[%clk 0:01:20]} 26. Rd2 {[%clk 0:01:14]}  Qh2+ {[%clk 0:00:34]} 27. Kf2 {[%clk 0:01:08]}  Qg3+ {[%clk 0:00:34]} 28. Ke2 {[%clk 0:01:07]}  Qxg2+ {[%clk 0:00:33]} 29. Kd3 {[%clk 0:01:04]}  Qxe4+ {[%clk 0:00:31]} 30. Kxe4 {[%clk 0:01:05]}  Ke6 {[%clk 0:00:28]} 31. Rad1 {[%clk 0:01:02]}  Be7 {[%clk 0:00:22]} 32. Kf3 {[%clk 0:00:48]}  Rgh4 {[%clk 0:00:19]} 33. Bf2 {[%clk 0:00:46]}  Rh2 {[%clk 0:00:16]} 34. Re2+ {[%clk 0:00:45]}  Kf6 {[%clk 0:00:12]} 35. Bd4+ {[%clk 0:00:40]}  Kf7 {[%clk 0:00:11]} 36. Rxh2 {[%clk 0:00:39]}  Rxh2 {[%clk 0:00:10]} 37. Be5 {[%clk 0:00:39]}  Ke6 {[%clk 0:00:07]} 38. Rg1 {[%clk 0:00:37]}  h5 {[%clk 0:00:06]} 39. Ke4 {[%clk 0:00:35]}  Re2+ {[%clk 0:00:05]} 40. Kf3 {[%clk 0:00:35]}  Rc2 {[%clk 0:00:05]} 41. Rg6+ {[%clk 0:00:33]}  Kf5 {[%clk 0:00:04]} 42. Rg7 {[%clk 0:00:33]}  Ke6 {[%clk 0:00:04]} 43. Bc3 {[%clk 0:00:31]}  h4 {[%clk 0:00:04]} 44. f5+ {[%clk 0:00:30]}  Kd6 {[%clk 0:00:01]} 45. c5+ {[%clk 0:00:29]} 1-0


[Site "https://www.chess.com"]

[Event "Titled Tuesday Blitz November 15 Late 2022"]
[White "Romero Ruscalleda, Josep"]
[Black "Marcolino, Daniel Mattos"]
[WhiteFideId "2231859"]
[BlackFideId "2106841"]
[WhiteElo "2183"]
[BlackElo "2089"]
[Result "1-0"]
[Round "11"]
[TimeControl "180+1"]
[Date "2022.11.16"]
[WhiteClock "0:00:57"]
[BlackClock "0:00:47"]

1. e4 {[%clk 0:03:00]}  c6 {[%clk 0:02:57]} 2. Nc3 {[%clk 0:03:00]}  d5 {[%clk 0:02:58]} 3. Nf3 {[%clk 0:03:00]}  Bg4 {[%clk 0:02:57]} 4. h3 {[%clk 0:03:00]}  Bxf3 {[%clk 0:02:58]} 5. Qxf3 {[%clk 0:03:00]}  Nf6 {[%clk 0:02:58]} 6. e5 {[%clk 0:02:54]}  Nfd7 {[%clk 0:02:58]} 7. d4 {[%clk 0:02:55]}  e6 {[%clk 0:02:56]} 8. Bd3 {[%clk 0:02:52]}  c5 {[%clk 0:02:56]} 9. Ne2 {[%clk 0:02:52]}  cxd4 {[%clk 0:02:55]} 10. Bf4 {[%clk 0:02:51]}  Nc6 {[%clk 0:02:53]} 11. Qg3 {[%clk 0:02:50]}  Qb6 {[%clk 0:02:47]} 12. O-O {[%clk 0:02:41]}  g6 {[%clk 0:02:33]} 13. Rfe1 {[%clk 0:02:13]}  Bg7 {[%clk 0:02:32]} 14. Nc1 {[%clk 0:02:04]}  Qxb2 {[%clk 0:02:21]} 15. Nb3 {[%clk 0:02:04]}  O-O {[%clk 0:02:21]} 16. h4 {[%clk 0:01:51]}  Nb4 {[%clk 0:02:14]} 17. Bc1 {[%clk 0:01:30]}  Qc3 {[%clk 0:02:14]} 18. Bd2 {[%clk 0:01:31]}  Nxc2 {[%clk 0:01:05]} 19. Bxc3 {[%clk 0:01:27]}  Nxe1 {[%clk 0:01:05]} 20. Bxe1 {[%clk 0:01:24]}  Nxe5 {[%clk 0:01:04]} 21. Rc1 {[%clk 0:01:17]}  Rac8 {[%clk 0:01:02]} 22. Bd2 {[%clk 0:01:07]}  Rxc1+ {[%clk 0:00:58]} 23. Bxc1 {[%clk 0:01:05]}  Rc8 {[%clk 0:00:58]} 24. Bf4 {[%clk 0:01:03]}  Nxd3 {[%clk 0:00:57]} 25. Qxd3 {[%clk 0:01:03]}  e5 {[%clk 0:00:55]} 26. Bd2 {[%clk 0:00:59]}  e4 {[%clk 0:00:54]} 27. Qb5 {[%clk 0:00:59]}  d3 {[%clk 0:00:47]} 28. Qxd5 {[%clk 0:00:57]} 1-0


[Site "https://www.chess.com"]

[Event "Titled Tuesday Blitz November 15 Late 2022"]
[White "Rorrer, Grayson"]
[Black "Makridis, Dimitrios"]
[WhiteFideId "30944996"]
[BlackFideId "25864475"]
[WhiteElo "2130"]
[BlackElo "2272"]
[Result "0-1"]
[Round "11"]
[TimeControl "180+1"]
[Date "2022.11.15"]
[WhiteClock "0:00:50"]
[BlackClock "0:01:23"]

1. e4 {[%clk 0:03:00]}  c5 {[%clk 0:02:59]} 2. Nf3 {[%clk 0:02:59]}  Nf6 {[%clk 0:02:58]} 3. e5 {[%clk 0:02:55]}  Nd5 {[%clk 0:02:58]} 4. Nc3 {[%clk 0:02:56]}  e6 {[%clk 0:02:57]} 5. Nxd5 {[%clk 0:02:55]}  exd5 {[%clk 0:02:58]} 6. d4 {[%clk 0:02:55]}  Nc6 {[%clk 0:02:58]} 7. dxc5 {[%clk 0:02:55]}  Bxc5 {[%clk 0:02:59]} 8. Qxd5 {[%clk 0:02:55]}  d6 {[%clk 0:03:00]} 9. exd6 {[%clk 0:02:56]}  Qb6 {[%clk 0:03:00]} 10. Qe4+ {[%clk 0:02:56]}  Be6 {[%clk 0:03:00]} 11. Qh4 {[%clk 0:02:57]}  Bxd6 {[%clk 0:03:00]} 12. Bd3 {[%clk 0:02:56]}  Nb4 {[%clk 0:02:57]} 13. O-O {[%clk 0:02:54]}  Nxd3 {[%clk 0:02:56]} 14. cxd3 {[%clk 0:02:55]}  O-O {[%clk 0:02:55]} 15. Be3 {[%clk 0:02:12]}  Qb5 {[%clk 0:02:42]} 16. b3 {[%clk 0:01:50]}  Rfe8 {[%clk 0:02:36]} 17. Rad1 {[%clk 0:01:38]}  Bd5 {[%clk 0:02:18]} 18. Nd4 {[%clk 0:01:35]}  Qd7 {[%clk 0:02:00]} 19. Ne2 {[%clk 0:01:12]}  h6 {[%clk 0:01:51]} 20. Nf4 {[%clk 0:01:07]}  Bc6 {[%clk 0:01:38]} 21. Nh5 {[%clk 0:00:59]}  Re6 {[%clk 0:01:37]} 22. d4 {[%clk 0:00:53]}  Bd5 {[%clk 0:01:23]} 23. Qg4 {[%clk 0:00:50]}  Rg6 {[%clk 0:01:23]} 0-1


[Site "https://www.chess.com"]

[Event "Titled Tuesday Blitz November 15 Late 2022"]
[White "Rose, Felix"]
[Black "Papayan, Oleg"]
[WhiteFideId "5105722"]
[BlackFideId "4193911"]
[WhiteElo "2039"]
[BlackElo "2153"]
[Result "0-1"]
[Round "11"]
[TimeControl "180+1"]
[Date "2022.11.16"]
[WhiteClock "0:00:17"]
[BlackClock "0:00:26"]

1. e4 {[%clk 0:02:59]}  e5 {[%clk 0:02:42]} 2. Nf3 {[%clk 0:03:00]}  Nc6 {[%clk 0:02:42]} 3. Bb5 {[%clk 0:03:00]}  Nf6 {[%clk 0:02:43]} 4. O-O {[%clk 0:02:59]}  Nxe4 {[%clk 0:02:43]} 5. d4 {[%clk 0:02:57]}  Nd6 {[%clk 0:02:43]} 6. dxe5 {[%clk 0:02:57]}  Nxb5 {[%clk 0:02:43]} 7. a4 {[%clk 0:02:57]}  d6 {[%clk 0:02:44]} 8. axb5 {[%clk 0:02:53]}  Nxe5 {[%clk 0:02:44]} 9. Re1 {[%clk 0:02:50]}  Be7 {[%clk 0:02:42]} 10. Nxe5 {[%clk 0:02:50]}  dxe5 {[%clk 0:02:43]} 11. Qxd8+ {[%clk 0:02:50]}  Kxd8 {[%clk 0:02:42]} 12. Rxe5 {[%clk 0:02:48]}  Bd6 {[%clk 0:02:42]} 13. Re2 {[%clk 0:02:44]}  Bg4 {[%clk 0:02:36]} 14. f3 {[%clk 0:02:44]}  Bf5 {[%clk 0:02:19]} 15. Nc3 {[%clk 0:02:31]}  Re8 {[%clk 0:02:15]} 16. Ne4 {[%clk 0:01:27]}  Kd7 {[%clk 0:01:48]} 17. Kf1 {[%clk 0:01:21]}  Bxe4 {[%clk 0:01:33]} 18. fxe4 {[%clk 0:01:14]}  Bxh2 {[%clk 0:01:32]} 19. Bg5 {[%clk 0:01:04]}  Re5 {[%clk 0:01:23]} 20. Rd1+ {[%clk 0:00:52]}  Ke6 {[%clk 0:01:19]} 21. Bc1 {[%clk 0:00:31]}  Rxb5 {[%clk 0:01:16]} 22. Kf2 {[%clk 0:00:32]}  Be5 {[%clk 0:01:15]} 23. c3 {[%clk 0:00:30]}  a5 {[%clk 0:01:09]} 24. Kf3 {[%clk 0:00:26]}  a4 {[%clk 0:01:08]} 25. Red2 {[%clk 0:00:25]}  Bd6 {[%clk 0:01:02]} 26. Rh1 {[%clk 0:00:20]}  h6 {[%clk 0:00:58]} 27. g4 {[%clk 0:00:18]}  a3 {[%clk 0:00:48]} 28. bxa3 {[%clk 0:00:18]}  Bxa3 {[%clk 0:00:49]} 29. Ra2 {[%clk 0:00:17]}  Rba5 {[%clk 0:00:45]} 30. Bf4 {[%clk 0:00:15]}  Bd6 {[%clk 0:00:44]} 31. Rb2 {[%clk 0:00:12]}  Bxf4 {[%clk 0:00:43]} 32. Kxf4 {[%clk 0:00:12]}  b6 {[%clk 0:00:43]} 33. Rd1 {[%clk 0:00:11]}  Re5 {[%clk 0:00:37]} 34. Rd4 {[%clk 0:00:10]}  Ra1 {[%clk 0:00:31]} 35. Rf2 {[%clk 0:00:10]}  Re1 {[%clk 0:00:29]} 36. c4 {[%clk 0:00:09]}  c5 {[%clk 0:00:28]} 37. Rd5 {[%clk 0:00:08]}  R1xe4+ {[%clk 0:00:28]} 38. Kf3 {[%clk 0:00:08]}  Rxc4 {[%clk 0:00:26]} 39. Rxe5+ {[%clk 0:00:08]}  Kxe5 {[%clk 0:00:27]} 40. Rb2 {[%clk 0:00:08]}  Rf4+ {[%clk 0:00:26]} 41. Kg3 {[%clk 0:00:08]}  Rb4 {[%clk 0:00:26]} 42. Re2+ {[%clk 0:00:09]}  Kd6 {[%clk 0:00:26]} 43. Rd2+ {[%clk 0:00:09]}  Rd4 {[%clk 0:00:27]} 44. Re2 {[%clk 0:00:09]}  b5 {[%clk 0:00:27]} 45. Re8 {[%clk 0:00:09]}  b4 {[%clk 0:00:26]} 46. Rg8 {[%clk 0:00:09]}  g6 {[%clk 0:00:26]} 47. Rh8 {[%clk 0:00:09]}  h5 {[%clk 0:00:26]} 48. gxh5 {[%clk 0:00:10]}  gxh5 {[%clk 0:00:26]} 49. Rxh5 {[%clk 0:00:10]}  b3 {[%clk 0:00:27]} 50. Rh6+ {[%clk 0:00:10]}  Kd5 {[%clk 0:00:25]} 51. Rh8 {[%clk 0:00:10]}  c4 {[%clk 0:00:24]} 52. Rd8+ {[%clk 0:00:10]}  Ke4 {[%clk 0:00:24]} 53. Rc8 {[%clk 0:00:10]}  b2 {[%clk 0:00:24]} 54. Rb8 {[%clk 0:00:11]}  c3 {[%clk 0:00:24]} 55. Kg2 {[%clk 0:00:12]}  Kd3 {[%clk 0:00:24]} 56. Kf2 {[%clk 0:00:12]}  Kc2 {[%clk 0:00:24]} 57. Ke2 {[%clk 0:00:12]}  b1=Q {[%clk 0:00:24]} 58. Rxb1 {[%clk 0:00:12]}  Kxb1 {[%clk 0:00:25]} 59. Ke3 {[%clk 0:00:12]}  Rd7 {[%clk 0:00:25]} 60. Ke4 {[%clk 0:00:13]}  c2 {[%clk 0:00:25]} 61. Ke3 {[%clk 0:00:13]}  c1=Q+ {[%clk 0:00:26]} 62. Ke4 {[%clk 0:00:14]}  Qc4+ {[%clk 0:00:27]} 63. Ke5 {[%clk 0:00:15]}  Qe6+ {[%clk 0:00:27]} 64. Kf4 {[%clk 0:00:15]}  Rd4+ {[%clk 0:00:27]} 65. Kg3 {[%clk 0:00:16]}  Qe3+ {[%clk 0:00:27]} 66. Kg2 {[%clk 0:00:17]}  Rd2+ {[%clk 0:00:26]} 0-1


[Site "https://www.chess.com"]